[Event "Titled Tuesday Blitz July 18 Late 2023"]
[White "Gatineau, Yovann"]
[Black "Cruz, William Ferreira Da"]
[WhiteFideId "26028999"]
[BlackFideId "2118050"]
[WhiteElo "2568"]
[BlackElo "2299"]
[Result "1/2-1/2"]
[Round "1"]
[TimeControl "180+2"]
[Date "2023.07.18"]
[WhiteClock "0:00:34"]
[BlackClock "0:00:10"]
[Board "138"]

1. Nf3 {[%clk 0:02:54]}  Nf6 {[%clk 0:02:58]} 2. b4 {[%clk 0:02:54]}  g6 {[%clk 0:02:26]} 3. Bb2 {[%clk 0:02:53]}  Bg7 {[%clk 0:02:26]} 4. c4 {[%clk 0:02:53]}  O-O {[%clk 0:02:25]} 5. e3 {[%clk 0:02:52]}  d6 {[%clk 0:02:24]} 6. d4 {[%clk 0:02:51]}  e5 {[%clk 0:02:20]} 7. dxe5 {[%clk 0:02:49]}  Ng4 {[%clk 0:02:19]} 8. Be2 {[%clk 0:02:49]}  Nc6 {[%clk 0:02:06]} 9. a3 {[%clk 0:02:41]}  a5 {[%clk 0:01:58]} 10. b5 {[%clk 0:02:38]}  Ncxe5 {[%clk 0:01:56]} 11. Nxe5 {[%clk 0:02:36]}  Nxe5 {[%clk 0:01:56]} 12. Nc3 {[%clk 0:02:20]}  Be6 {[%clk 0:01:50]} 13. Qa4 {[%clk 0:02:19]}  Nd7 {[%clk 0:01:07]} 14. O-O {[%clk 0:02:12]}  Nc5 {[%clk 0:00:57]} 15. Qd1 {[%clk 0:02:00]}  a4 {[%clk 0:00:56]} 16. Bd3 {[%clk 0:01:25]}  Re8 {[%clk 0:00:44]} 17. Re1 {[%clk 0:01:18]}  c6 {[%clk 0:00:27]} 18. Rb1 {[%clk 0:01:12]}  Qa5 {[%clk 0:00:19]} 19. Qc2 {[%clk 0:00:46]}  Rad8 {[%clk 0:00:15]} 20. bxc6 {[%clk 0:00:40]}  bxc6 {[%clk 0:00:15]} 21. Red1 {[%clk 0:00:39]}  Rb8 {[%clk 0:00:14]} 22. Ba1 {[%clk 0:00:38]}  Nb3 {[%clk 0:00:13]} 23. Bb2 {[%clk 0:00:35]}  Nc5 {[%clk 0:00:12]} 24. Ba1 {[%clk 0:00:35]}  Nb3 {[%clk 0:00:10]} 25. Bb2 {[%clk 0:00:34]}  Nc5 {[%clk 0:00:10]} 1/2-1/2


[Site "https://www.chess.com"]

[Event "Titled Tuesday Blitz July 18 Late 2023"]
[White "Krishnan, Varun"]
[Black "Fernandez Siles, Luis"]
[WhiteFideId "5054508"]
[BlackFideId "2209420"]
[WhiteElo "2568"]
[BlackElo "2297"]
[Result "1-0"]
[Round "1"]
[TimeControl "180+2"]
[Date "2023.07.18"]
[WhiteClock "0:01:35"]
[BlackClock "0:01:29"]
[Board "140"]

1. a3 {[%clk 0:02:55]}  d5 {[%clk 0:02:56]} 2. Nf3 {[%clk 0:02:51]}  c5 {[%clk 0:02:56]} 3. c4 {[%clk 0:02:50]}  e6 {[%clk 0:02:54]} 4. e3 {[%clk 0:02:48]}  Nf6 {[%clk 0:02:53]} 5. d4 {[%clk 0:02:47]}  cxd4 {[%clk 0:02:50]} 6. exd4 {[%clk 0:02:46]}  Nc6 {[%clk 0:02:50]} 7. Nc3 {[%clk 0:02:46]}  Be7 {[%clk 0:02:49]} 8. Bg5 {[%clk 0:02:46]}  O-O {[%clk 0:02:48]} 9. Bd3 {[%clk 0:02:42]}  dxc4 {[%clk 0:02:46]} 10. Bxc4 {[%clk 0:02:42]}  Nd5 {[%clk 0:02:37]} 11. Bxe7 {[%clk 0:02:39]}  Ncxe7 {[%clk 0:02:34]} 12. O-O {[%clk 0:02:38]}  b6 {[%clk 0:02:26]} 13. Ne5 {[%clk 0:02:32]}  Bb7 {[%clk 0:02:25]} 14. Ba2 {[%clk 0:02:30]}  Rc8 {[%clk 0:02:19]} 15. Ne4 {[%clk 0:02:23]}  Ng6 {[%clk 0:02:16]} 16. Qd2 {[%clk 0:02:00]}  Ndf4 {[%clk 0:02:07]} 17. Nxg6 {[%clk 0:01:53]}  fxg6 {[%clk 0:01:54]} 18. Rfe1 {[%clk 0:01:48]}  Bxe4 {[%clk 0:01:50]} 19. Rxe4 {[%clk 0:01:46]}  Qg5 {[%clk 0:01:29]} 20. Rxf4 {[%clk 0:01:35]} 1-0


[Site "https://www.chess.com"]

[Event "Titled Tuesday Blitz July 18 Late 2023"]
[White "Kaganskiy, Gleb"]
[Black "Jimenez Almeida, Luis David"]
[WhiteFideId "4132025"]
[BlackFideId "22242244"]
[WhiteElo "2294"]
[BlackElo "2567"]
[Result "0-1"]
[Round "1"]
[TimeControl "180+2"]
[Date "2023.07.18"]
[WhiteClock "0:00:43"]
[BlackClock "0:01:09"]
[Board "141"]

1. e4 {[%clk 0:02:59]}  c5 {[%clk 0:02:58]} 2. Nf3 {[%clk 0:02:56]}  e6 {[%clk 0:02:58]} 3. c3 {[%clk 0:02:55]}  Nc6 {[%clk 0:02:55]} 4. d4 {[%clk 0:02:55]}  cxd4 {[%clk 0:02:54]} 5. cxd4 {[%clk 0:02:55]}  d5 {[%clk 0:02:54]} 6. e5 {[%clk 0:02:55]}  Nge7 {[%clk 0:02:54]} 7. Nc3 {[%clk 0:02:56]}  Nf5 {[%clk 0:02:54]} 8. a3 {[%clk 0:02:52]}  Bd7 {[%clk 0:02:49]} 9. b4 {[%clk 0:02:52]}  a5 {[%clk 0:02:41]} 10. b5 {[%clk 0:02:51]}  Na7 {[%clk 0:02:42]} 11. a4 {[%clk 0:02:51]}  Nc8 {[%clk 0:02:36]} 12. Bd3 {[%clk 0:02:48]}  Nb6 {[%clk 0:02:34]} 13. O-O {[%clk 0:02:34]}  Rc8 {[%clk 0:02:28]} 14. Bb2 {[%clk 0:02:31]}  Be7 {[%clk 0:02:27]} 15. Rc1 {[%clk 0:02:31]}  O-O {[%clk 0:02:26]} 16. Re1 {[%clk 0:02:22]}  Nc4 {[%clk 0:02:16]} 17. Ba1 {[%clk 0:02:03]}  Bb4 {[%clk 0:01:55]} 18. Re2 {[%clk 0:01:56]}  Nh4 {[%clk 0:01:47]} 19. Nxh4 {[%clk 0:01:47]}  Qxh4 {[%clk 0:01:48]} 20. Na2 {[%clk 0:01:39]}  Ba3 {[%clk 0:01:42]} 21. Rc3 {[%clk 0:01:32]}  Be7 {[%clk 0:01:37]} 22. Bb1 {[%clk 0:01:22]}  g6 {[%clk 0:01:35]} 23. Rh3 {[%clk 0:01:20]}  Qg5 {[%clk 0:01:31]} 24. Nc1 {[%clk 0:00:54]}  Nxe5 {[%clk 0:01:19]} 25. f4 {[%clk 0:00:45]}  Qxf4 {[%clk 0:01:12]} 26. Nd3 {[%clk 0:00:42]}  Nxd3 {[%clk 0:01:10]} 27. Qxd3 {[%clk 0:00:43]}  Rc1+ {[%clk 0:01:09]} 28. Qd1 {[%clk 0:00:42]}  Rxd1+ {[%clk 0:01:09]} 29. Re1 {[%clk 0:00:43]}  Rxe1# {[%clk 0:01:09]} 0-1


[Site "https://www.chess.com"]

[Event "Titled Tuesday Blitz July 18 Late 2023"]
[White "Vlassov, Nikolai"]
[Black "Vujacic, Igor"]
[WhiteFideId "4103360"]
[BlackFideId "932620"]
[WhiteElo "2566"]
[BlackElo "2291"]
[Result "1-0"]
[Round "1"]
[TimeControl "180+2"]
[Date "2023.07.18"]
[WhiteClock "0:00:53"]
[BlackClock "0:00:23"]
[Board "142"]

1. e4 {[%clk 0:02:52]}  c5 {[%clk 0:02:58]} 2. c3 {[%clk 0:02:51]}  Nf6 {[%clk 0:02:58]} 3. e5 {[%clk 0:02:51]}  Nd5 {[%clk 0:02:59]} 4. d4 {[%clk 0:02:49]}  cxd4 {[%clk 0:02:58]} 5. cxd4 {[%clk 0:02:49]}  d6 {[%clk 0:02:59]} 6. Bc4 {[%clk 0:02:48]}  Nb6 {[%clk 0:02:58]} 7. Bb3 {[%clk 0:02:48]}  dxe5 {[%clk 0:02:52]} 8. Qh5 {[%clk 0:02:47]}  e6 {[%clk 0:02:48]} 9. dxe5 {[%clk 0:02:47]}  Nc6 {[%clk 0:02:43]} 10. Nc3 {[%clk 0:02:46]}  Bc5 {[%clk 0:02:12]} 11. Bg5 {[%clk 0:02:13]}  Qd4 {[%clk 0:02:04]} 12. Qe2 {[%clk 0:01:46]}  Qxe5 {[%clk 0:01:55]} 13. Qxe5 {[%clk 0:01:33]}  Nxe5 {[%clk 0:01:56]} 14. O-O-O {[%clk 0:01:31]}  Bd7 {[%clk 0:01:23]} 15. Ne4 {[%clk 0:01:24]}  Be7 {[%clk 0:01:21]} 16. f4 {[%clk 0:01:16]}  Bxg5 {[%clk 0:01:05]} 17. Nxg5 {[%clk 0:01:10]}  O-O-O {[%clk 0:00:58]} 18. fxe5 {[%clk 0:01:07]}  Rdf8 {[%clk 0:00:38]} 19. Ne4 {[%clk 0:01:01]}  Bc6 {[%clk 0:00:37]} 20. Nd6+ {[%clk 0:01:01]}  Kc7 {[%clk 0:00:38]} 21. Nf3 {[%clk 0:01:01]}  f6 {[%clk 0:00:39]} 22. Bxe6 {[%clk 0:00:53]}  fxe5 {[%clk 0:00:23]} 23. Nf7 {[%clk 0:00:53]} 1-0


[Site "https://www.chess.com"]

[Event "Titled Tuesday Blitz July 18 Late 2023"]
[White "Arencibia Monduy, Antonio"]
[Black "Santos, Rafael Ventura Dos"]
[WhiteFideId "3507939"]
[BlackFideId "2122227"]
[WhiteElo "2561"]
[BlackElo "2287"]
[Result "0-1"]
[Round "1"]
[TimeControl "180+2"]
[Date "2023.07.18"]
[WhiteClock "0:00:05"]
[BlackClock "0:00:14"]
[Board "144"]

1. e4 {[%clk 0:03:00]}  c5 {[%clk 0:02:59]} 2. Nf3 {[%clk 0:03:00]}  g6 {[%clk 0:02:58]} 3. c3 {[%clk 0:03:01]}  Nf6 {[%clk 0:02:57]} 4. e5 {[%clk 0:03:01]}  Nd5 {[%clk 0:02:57]} 5. d4 {[%clk 0:03:01]}  cxd4 {[%clk 0:02:57]} 6. cxd4 {[%clk 0:03:02]}  Bg7 {[%clk 0:02:54]} 7. Nc3 {[%clk 0:03:02]}  Nxc3 {[%clk 0:02:52]} 8. bxc3 {[%clk 0:03:03]}  O-O {[%clk 0:02:50]} 9. Bd3 {[%clk 0:02:58]}  d6 {[%clk 0:02:46]} 10. exd6 {[%clk 0:02:58]}  Qxd6 {[%clk 0:02:47]} 11. O-O {[%clk 0:02:58]}  Nc6 {[%clk 0:02:45]} 12. Re1 {[%clk 0:02:57]}  h6 {[%clk 0:02:37]} 13. a4 {[%clk 0:02:57]}  Re8 {[%clk 0:02:36]} 14. Ba3 {[%clk 0:02:55]}  Qc7 {[%clk 0:02:26]} 15. Qc2 {[%clk 0:02:43]}  Bg4 {[%clk 0:02:15]} 16. Re3 {[%clk 0:02:40]}  Rac8 {[%clk 0:02:01]} 17. Qd2 {[%clk 0:02:10]}  Qa5 {[%clk 0:01:43]} 18. Qe1 {[%clk 0:01:44]}  e5 {[%clk 0:00:39]} 19. Nxe5 {[%clk 0:01:33]}  Nxe5 {[%clk 0:00:37]} 20. dxe5 {[%clk 0:01:30]}  Qxc3 {[%clk 0:00:35]} 21. Qxc3 {[%clk 0:01:23]}  Rxc3 {[%clk 0:00:36]} 22. Bb2 {[%clk 0:01:19]}  Rc5 {[%clk 0:00:34]} 23. f4 {[%clk 0:01:10]}  Rd8 {[%clk 0:00:26]} 24. Be4 {[%clk 0:01:08]}  b6 {[%clk 0:00:20]} 25. Ba3 {[%clk 0:01:06]}  Rc4 {[%clk 0:00:19]} 26. Be7 {[%clk 0:00:45]}  Rdd4 {[%clk 0:00:18]} 27. Rae1 {[%clk 0:00:37]}  Bf8 {[%clk 0:00:15]} 28. Bxf8 {[%clk 0:00:37]}  Kxf8 {[%clk 0:00:16]} 29. a5 {[%clk 0:00:30]}  bxa5 {[%clk 0:00:16]} 30. h3 {[%clk 0:00:27]}  Bd7 {[%clk 0:00:15]} 31. g4 {[%clk 0:00:26]}  a4 {[%clk 0:00:14]} 32. Kf2 {[%clk 0:00:26]}  Rb4 {[%clk 0:00:12]} 33. f5 {[%clk 0:00:20]}  gxf5 {[%clk 0:00:12]} 34. gxf5 {[%clk 0:00:21]}  Rb3 {[%clk 0:00:12]} 35. Kf3 {[%clk 0:00:10]}  Bb5 {[%clk 0:00:04]} 36. e6 {[%clk 0:00:07]}  fxe6 {[%clk 0:00:04]} 37. f6 {[%clk 0:00:07]}  Kf7 {[%clk 0:00:04]} 38. Rg1 {[%clk 0:00:06]}  Kxf6 {[%clk 0:00:04]} 39. Rxb3 {[%clk 0:00:06]}  axb3 {[%clk 0:00:03]} 40. Ke3 {[%clk 0:00:07]}  Rc4 {[%clk 0:00:03]} 41. Rg6+ {[%clk 0:00:07]}  Ke7 {[%clk 0:00:03]} 42. Rg7+ {[%clk 0:00:07]}  Kd6 {[%clk 0:00:03]} 43. Rxa7 {[%clk 0:00:06]}  Rc3+ {[%clk 0:00:04]} 44. Kd2 {[%clk 0:00:06]}  Rxh3 {[%clk 0:00:04]} 45. Rb7 {[%clk 0:00:06]}  Bc4 {[%clk 0:00:05]} 46. Rb6+ {[%clk 0:00:04]}  Ke5 {[%clk 0:00:05]} 47. Bb7 {[%clk 0:00:01]}  Bd5 {[%clk 0:00:06]} 48. Bxd5 {[%clk 0:00:01]}  exd5 {[%clk 0:00:06]} 49. Kc1 {[%clk 0:00:01]}  Rh2 {[%clk 0:00:07]} 50. Rxb3 {[%clk 0:00:01]}  Rh1+ {[%clk 0:00:08]} 51. Kd2 {[%clk 0:00:01]}  Rh2+ {[%clk 0:00:09]} 52. Ke1 {[%clk 0:00:01]}  Ke4 {[%clk 0:00:09]} 53. Kf1 {[%clk 0:00:02]}  d4 {[%clk 0:00:09]} 54. Kg1 {[%clk 0:00:03]}  Rh4 {[%clk 0:00:08]} 55. Kg2 {[%clk 0:00:02]}  d3 {[%clk 0:00:08]} 56. Kg3 {[%clk 0:00:03]}  Rh5 {[%clk 0:00:08]} 57. Kf2 {[%clk 0:00:03]}  Rh2+ {[%clk 0:00:08]} 58. Kg3 {[%clk 0:00:03]}  Rc2 {[%clk 0:00:09]} 59. Rb4+ {[%clk 0:00:03]}  Ke3 {[%clk 0:00:09]} 60. Rb6 {[%clk 0:00:03]}  d2 {[%clk 0:00:08]} 61. Re6+ {[%clk 0:00:03]}  Kd3 {[%clk 0:00:07]} 62. Kf3 {[%clk 0:00:03]}  d1=Q+ {[%clk 0:00:07]} 63. Kg3 {[%clk 0:00:02]}  Qh5 {[%clk 0:00:08]} 64. Rd6+ {[%clk 0:00:01]}  Kc3 {[%clk 0:00:08]} 65. Rc6+ {[%clk 0:00:02]}  Kb2 {[%clk 0:00:09]} 66. Rb6+ {[%clk 0:00:02]}  Kc1 {[%clk 0:00:09]} 67. Rf6 {[%clk 0:00:02]}  Qg5+ {[%clk 0:00:10]} 68. Kh3 {[%clk 0:00:02]}  Qxf6 {[%clk 0:00:11]} 69. Kg4 {[%clk 0:00:02]}  Rc5 {[%clk 0:00:11]} 70. Kh3 {[%clk 0:00:03]}  Qd4 {[%clk 0:00:11]} 71. Kg2 {[%clk 0:00:03]}  Rc3 {[%clk 0:00:12]} 72. Kf1 {[%clk 0:00:04]}  Re3 {[%clk 0:00:13]} 73. Kf2 {[%clk 0:00:04]}  Qd2+ {[%clk 0:00:13]} 74. Kf1 {[%clk 0:00:05]}  Re1# {[%clk 0:00:14]} 0-1


[Site "https://www.chess.com"]

[Event "Titled Tuesday Blitz July 18 Late 2023"]
[White "Manon-og, Ramon Jr."]
[Black "Postlmayer, Jakob"]
[WhiteFideId "5200776"]
[BlackFideId "1643622"]
[WhiteElo "2286"]
[BlackElo "2559"]
[Result "1-0"]
[Round "1"]
[TimeControl "180+2"]
[Date "2023.07.18"]
[WhiteClock "0:01:36"]
[BlackClock "0:00:39"]
[Board "145"]

1. e4 {[%clk 0:03:00]}  c5 {[%clk 0:02:59]} 2. Nf3 {[%clk 0:03:01]}  d6 {[%clk 0:03:00]} 3. Bb5+ {[%clk 0:03:00]}  Nd7 {[%clk 0:02:59]} 4. a4 {[%clk 0:03:00]}  Nf6 {[%clk 0:02:59]} 5. Nc3 {[%clk 0:02:58]}  g6 {[%clk 0:02:59]} 6. O-O {[%clk 0:02:58]}  Bg7 {[%clk 0:02:58]} 7. Re1 {[%clk 0:02:58]}  a6 {[%clk 0:02:56]} 8. Bf1 {[%clk 0:02:57]}  O-O {[%clk 0:02:55]} 9. a5 {[%clk 0:02:58]}  b5 {[%clk 0:02:53]} 10. axb6 {[%clk 0:02:57]}  Bb7 {[%clk 0:02:53]} 11. Bc4 {[%clk 0:02:57]}  Nxb6 {[%clk 0:02:49]} 12. Bf1 {[%clk 0:02:56]}  e5 {[%clk 0:02:41]} 13. d3 {[%clk 0:02:54]}  a5 {[%clk 0:02:38]} 14. Bg5 {[%clk 0:02:51]}  h6 {[%clk 0:02:37]} 15. Be3 {[%clk 0:02:51]}  Ng4 {[%clk 0:02:35]} 16. Bd2 {[%clk 0:02:51]}  f5 {[%clk 0:02:35]} 17. h3 {[%clk 0:02:44]}  Nf6 {[%clk 0:02:33]} 18. Qc1 {[%clk 0:02:40]}  f4 {[%clk 0:02:32]} 19. b3 {[%clk 0:02:39]}  g5 {[%clk 0:02:29]} 20. Nh2 {[%clk 0:02:39]}  h5 {[%clk 0:02:24]} 21. g3 {[%clk 0:02:38]}  Bc8 {[%clk 0:02:08]} 22. gxf4 {[%clk 0:02:31]}  exf4 {[%clk 0:02:03]} 23. Kh1 {[%clk 0:02:30]}  d5 {[%clk 0:01:58]} 24. e5 {[%clk 0:02:27]}  Nh7 {[%clk 0:01:54]} 25. Qd1 {[%clk 0:02:27]}  Qe8 {[%clk 0:01:50]} 26. Bg2 {[%clk 0:02:22]}  Be6 {[%clk 0:01:49]} 27. Nb5 {[%clk 0:02:20]}  Qxb5 {[%clk 0:01:37]} 28. Qxh5 {[%clk 0:02:16]}  Qe8 {[%clk 0:01:27]} 29. Qf3 {[%clk 0:02:15]}  a4 {[%clk 0:01:24]} 30. bxa4 {[%clk 0:02:07]}  Rxa4 {[%clk 0:01:23]} 31. Rab1 {[%clk 0:02:08]}  Nd7 {[%clk 0:01:22]} 32. Rb7 {[%clk 0:02:06]}  Ra8 {[%clk 0:01:16]} 33. Reb1 {[%clk 0:02:00]}  Rf7 {[%clk 0:01:16]} 34. Ng4 {[%clk 0:01:54]}  Nxe5 {[%clk 0:01:12]} 35. Nxe5 {[%clk 0:01:54]}  Bxe5 {[%clk 0:01:13]} 36. R7b6 {[%clk 0:01:51]}  Bc7 {[%clk 0:01:01]} 37. Rb7 {[%clk 0:01:48]}  Qc6 {[%clk 0:00:56]} 38. Bc3 {[%clk 0:01:45]}  Raf8 {[%clk 0:00:52]} 39. Qh5 {[%clk 0:01:39]}  Qd6 {[%clk 0:00:39]} 40. Qg6+ {[%clk 0:01:36]} 1-0


[Site "https://www.chess.com"]

[Event "Titled Tuesday Blitz July 18 Late 2023"]
[White "Grinev, Valeriy"]
[Black "StarkyNZ"]
[WhiteFideId "14117517"]
[WhiteElo "2557"]
[BlackElo "2282"]
[Result "1/2-1/2"]
[Round "1"]
[TimeControl "180+2"]
[Date "2023.07.18"]
[WhiteClock "0:01:20"]
[BlackClock "0:00:08"]
[Board "146"]

1. d4 {[%clk 0:02:58]}  Nf6 {[%clk 0:02:52]} 2. c4 {[%clk 0:02:58]}  e6 {[%clk 0:02:53]} 3. Nc3 {[%clk 0:02:58]}  Bb4 {[%clk 0:02:52]} 4. e3 {[%clk 0:02:58]}  d5 {[%clk 0:02:50]} 5. a3 {[%clk 0:02:57]}  Be7 {[%clk 0:02:47]} 6. Nf3 {[%clk 0:02:55]}  c6 {[%clk 0:02:46]} 7. b4 {[%clk 0:02:53]}  a5 {[%clk 0:02:40]} 8. b5 {[%clk 0:02:52]}  cxb5 {[%clk 0:02:38]} 9. cxb5 {[%clk 0:02:51]}  Nbd7 {[%clk 0:02:34]} 10. Bd3 {[%clk 0:02:51]}  O-O {[%clk 0:02:32]} 11. O-O {[%clk 0:02:51]}  b6 {[%clk 0:02:29]} 12. a4 {[%clk 0:02:46]}  Bb4 {[%clk 0:02:20]} 13. Ne2 {[%clk 0:02:41]}  Qe7 {[%clk 0:02:19]} 14. Qb3 {[%clk 0:02:39]}  Ne4 {[%clk 0:02:16]} 15. Ba3 {[%clk 0:02:36]}  Bxa3 {[%clk 0:02:12]} 16. Qxa3 {[%clk 0:02:35]}  Qxa3 {[%clk 0:02:04]} 17. Rxa3 {[%clk 0:02:36]}  Bb7 {[%clk 0:02:05]} 18. Bxe4 {[%clk 0:02:27]}  dxe4 {[%clk 0:02:06]} 19. Nd2 {[%clk 0:02:26]}  Rac8 {[%clk 0:02:02]} 20. Rc3 {[%clk 0:02:17]}  Rxc3 {[%clk 0:01:57]} 21. Nxc3 {[%clk 0:02:17]}  f5 {[%clk 0:01:58]} 22. Rc1 {[%clk 0:02:16]}  Rc8 {[%clk 0:01:56]} 23. Ne2 {[%clk 0:02:16]}  Rxc1+ {[%clk 0:01:49]} 24. Nxc1 {[%clk 0:02:17]}  e5 {[%clk 0:01:49]} 25. Ncb3 {[%clk 0:02:13]}  Kf7 {[%clk 0:01:44]} 26. Kf1 {[%clk 0:02:13]}  Ke6 {[%clk 0:01:40]} 27. Ke2 {[%clk 0:02:13]}  Bd5 {[%clk 0:01:35]} 28. Kd1 {[%clk 0:02:13]}  Bxb3+ {[%clk 0:01:28]} 29. Nxb3 {[%clk 0:02:14]}  Kd5 {[%clk 0:01:29]} 30. dxe5 {[%clk 0:02:05]}  Nxe5 {[%clk 0:01:26]} 31. Nd2 {[%clk 0:02:06]}  Nc4 {[%clk 0:01:20]} 32. Nb3 {[%clk 0:02:06]}  Nb2+ {[%clk 0:01:15]} 33. Kc2 {[%clk 0:02:05]}  Nxa4 {[%clk 0:01:15]} 34. Nd4 {[%clk 0:02:06]}  g6 {[%clk 0:01:12]} 35. h4 {[%clk 0:01:55]}  Kc4 {[%clk 0:01:02]} 36. h5 {[%clk 0:01:53]}  f4 {[%clk 0:00:38]} 37. h6 {[%clk 0:01:50]}  fxe3 {[%clk 0:00:32]} 38. fxe3 {[%clk 0:01:51]}  Nc3 {[%clk 0:00:33]} 39. Ne6 {[%clk 0:01:48]}  Nd5 {[%clk 0:00:15]} 40. Kd2 {[%clk 0:01:46]}  a4 {[%clk 0:00:15]} 41. Ng5 {[%clk 0:01:43]}  a3 {[%clk 0:00:16]} 42. Kc1 {[%clk 0:01:42]}  Nxe3 {[%clk 0:00:15]} 43. Nxh7 {[%clk 0:01:35]}  Ng4 {[%clk 0:00:14]} 44. Ng5 {[%clk 0:01:34]}  Nxh6 {[%clk 0:00:14]} 45. Nxe4 {[%clk 0:01:35]}  Kxb5 {[%clk 0:00:14]} 46. Kb1 {[%clk 0:01:29]}  Kc4 {[%clk 0:00:13]} 47. Ka2 {[%clk 0:01:29]}  Kb4 {[%clk 0:00:13]} 48. Nf6 {[%clk 0:01:27]}  Ka4 {[%clk 0:00:12]} 49. Nd5 {[%clk 0:01:26]}  b5 {[%clk 0:00:12]} 50. Nc3+ {[%clk 0:01:27]}  Kb4 {[%clk 0:00:12]} 51. Ne4 {[%clk 0:01:25]}  Kc4 {[%clk 0:00:12]} 52. Kxa3 {[%clk 0:01:25]}  b4+ {[%clk 0:00:11]} 53. Kb2 {[%clk 0:01:25]}  Nf5 {[%clk 0:00:11]} 54. g4 {[%clk 0:01:23]}  Ne3 {[%clk 0:00:11]} 55. g5 {[%clk 0:01:23]}  b3 {[%clk 0:00:10]} 56. Nd2+ {[%clk 0:01:19]}  Kd4 {[%clk 0:00:09]} 57. Nf3+ {[%clk 0:01:19]}  Ke4 {[%clk 0:00:09]} 58. Nh4 {[%clk 0:01:19]}  Kf4 {[%clk 0:00:07]} 59. Nxg6+ {[%clk 0:01:19]}  Kxg5 {[%clk 0:00:07]} 60. Ne5 {[%clk 0:01:19]}  Kf4 {[%clk 0:00:08]} 61. Nd3+ {[%clk 0:01:18]}  Ke4 {[%clk 0:00:08]} 62. Nc5+ {[%clk 0:01:19]}  Kd4 {[%clk 0:00:08]} 63. Nxb3+ {[%clk 0:01:20]} 1/2-1/2


[Site "https://www.chess.com"]

[Event "Titled Tuesday Blitz July 18 Late 2023"]
[White "Pham, Le Thao Nguyen"]
[Black "Cooper, Aaron"]
[WhiteFideId "12401226"]
[BlackFideId "2634945"]
[WhiteElo "2555"]
[BlackElo "2279"]
[Result "1-0"]
[Round "1"]
[TimeControl "180+2"]
[Date "2023.07.18"]
[WhiteClock "0:00:11"]
[BlackClock "0:00:21"]
[Board "148"]

1. d4 {[%clk 0:02:59]}  Nf6 {[%clk 0:02:54]} 2. c4 {[%clk 0:02:57]}  e6 {[%clk 0:02:52]} 3. Nf3 {[%clk 0:02:54]}  d5 {[%clk 0:02:49]} 4. Nc3 {[%clk 0:02:54]}  Be7 {[%clk 0:02:45]} 5. Bf4 {[%clk 0:02:53]}  O-O {[%clk 0:02:30]} 6. e3 {[%clk 0:02:53]}  a6 {[%clk 0:02:23]} 7. c5 {[%clk 0:02:30]}  Nbd7 {[%clk 0:02:16]} 8. Bd3 {[%clk 0:02:27]}  c6 {[%clk 0:02:15]} 9. h3 {[%clk 0:02:25]}  b6 {[%clk 0:02:13]} 10. cxb6 {[%clk 0:02:17]}  Nxb6 {[%clk 0:02:13]} 11. Rc1 {[%clk 0:02:03]}  a5 {[%clk 0:02:05]} 12. O-O {[%clk 0:02:01]}  Ba6 {[%clk 0:02:04]} 13. b3 {[%clk 0:01:28]}  Bxd3 {[%clk 0:02:04]} 14. Qxd3 {[%clk 0:01:28]}  Ba3 {[%clk 0:01:50]} 15. Rc2 {[%clk 0:01:27]}  Qe7 {[%clk 0:01:45]} 16. Nb1 {[%clk 0:01:17]}  Rfc8 {[%clk 0:01:29]} 17. Nxa3 {[%clk 0:01:14]}  Qxa3 {[%clk 0:01:30]} 18. Rfc1 {[%clk 0:01:12]}  a4 {[%clk 0:01:26]} 19. Ne5 {[%clk 0:00:52]}  axb3 {[%clk 0:01:19]} 20. axb3 {[%clk 0:00:53]}  Nc4 {[%clk 0:00:40]} 21. bxc4 {[%clk 0:00:44]}  Qxd3 {[%clk 0:00:32]} 22. Nxd3 {[%clk 0:00:45]}  dxc4 {[%clk 0:00:31]} 23. Rxc4 {[%clk 0:00:43]}  Nd5 {[%clk 0:00:32]} 24. Rxc6 {[%clk 0:00:39]}  Rxc6 {[%clk 0:00:33]} 25. Rxc6 {[%clk 0:00:38]}  h6 {[%clk 0:00:33]} 26. Bg3 {[%clk 0:00:34]}  g5 {[%clk 0:00:33]} 27. Ne5 {[%clk 0:00:20]}  Ra1+ {[%clk 0:00:33]} 28. Kh2 {[%clk 0:00:20]}  Ra7 {[%clk 0:00:30]} 29. Rd6 {[%clk 0:00:15]}  Kg7 {[%clk 0:00:29]} 30. Rd7 {[%clk 0:00:15]}  Rxd7 {[%clk 0:00:28]} 31. Nxd7 {[%clk 0:00:16]}  f6 {[%clk 0:00:28]} 32. Nc5 {[%clk 0:00:16]}  Kf7 {[%clk 0:00:28]} 33. e4 {[%clk 0:00:15]}  Nc3 {[%clk 0:00:28]} 34. f3 {[%clk 0:00:15]}  Ne2 {[%clk 0:00:28]} 35. Bf2 {[%clk 0:00:15]}  h5 {[%clk 0:00:28]} 36. Nd3 {[%clk 0:00:11]}  h4 {[%clk 0:00:27]} 37. Nb4 {[%clk 0:00:10]}  Nc3 {[%clk 0:00:26]} 38. d5 {[%clk 0:00:10]}  exd5 {[%clk 0:00:26]} 39. Nxd5 {[%clk 0:00:11]}  Nb5 {[%clk 0:00:26]} 40. Bc5 {[%clk 0:00:10]}  Ke6 {[%clk 0:00:25]} 41. Ne3 {[%clk 0:00:09]}  Kf7 {[%clk 0:00:24]} 42. Nf5 {[%clk 0:00:09]}  Nc7 {[%clk 0:00:24]} 43. Bd4 {[%clk 0:00:08]}  Ne6 {[%clk 0:00:24]} 44. Bb2 {[%clk 0:00:08]}  Nf4 {[%clk 0:00:23]} 45. Nh6+ {[%clk 0:00:08]}  Kg6 {[%clk 0:00:23]} 46. Ng4 {[%clk 0:00:09]}  f5 {[%clk 0:00:22]} 47. Ne5+ {[%clk 0:00:09]}  Kf6 {[%clk 0:00:23]} 48. Nd3+ {[%clk 0:00:09]}  Ke6 {[%clk 0:00:22]} 49. Nxf4+ {[%clk 0:00:09]}  gxf4 {[%clk 0:00:22]} 50. exf5+ {[%clk 0:00:09]}  Kxf5 {[%clk 0:00:22]} 51. Kg1 {[%clk 0:00:10]}  Kg5 {[%clk 0:00:21]} 52. Kf2 {[%clk 0:00:11]} 1-0


[Site "https://www.chess.com"]

[Event "Titled Tuesday Blitz July 18 Late 2023"]
[White "Petesch, Gabriel"]
[Black "Ward, Ieuan C"]
[WhiteFideId "2032465"]
[BlackFideId "406627"]
[WhiteElo "2552"]
[BlackElo "2272"]
[Result "1-0"]
[Round "1"]
[TimeControl "180+2"]
[Date "2023.07.18"]
[WhiteClock "0:01:02"]
[BlackClock "0:01:31"]
[Board "150"]

1. Nf3 {[%clk 0:02:55]}  e6 {[%clk 0:02:59]} 2. c4 {[%clk 0:02:46]}  d5 {[%clk 0:02:58]} 3. e3 {[%clk 0:02:35]}  Nf6 {[%clk 0:02:58]} 4. b3 {[%clk 0:02:25]}  b6 {[%clk 0:02:56]} 5. Bb2 {[%clk 0:02:24]}  Bb7 {[%clk 0:02:56]} 6. Be2 {[%clk 0:02:15]}  Be7 {[%clk 0:02:56]} 7. O-O {[%clk 0:02:12]}  Nbd7 {[%clk 0:02:56]} 8. Nc3 {[%clk 0:02:09]}  O-O {[%clk 0:02:55]} 9. Rc1 {[%clk 0:02:01]}  c5 {[%clk 0:02:53]} 10. cxd5 {[%clk 0:01:59]}  Nxd5 {[%clk 0:02:49]} 11. Qc2 {[%clk 0:01:53]}  Nxc3 {[%clk 0:02:24]} 12. dxc3 {[%clk 0:01:43]}  Nf6 {[%clk 0:02:17]} 13. c4 {[%clk 0:01:38]}  Be4 {[%clk 0:02:13]} 14. Qc3 {[%clk 0:01:38]}  Qc7 {[%clk 0:02:04]} 15. Rcd1 {[%clk 0:01:36]}  Rad8 {[%clk 0:02:04]} 16. Ne5 {[%clk 0:01:23]}  h6 {[%clk 0:01:57]} 17. Ng4 {[%clk 0:01:20]}  Ne8 {[%clk 0:01:54]} 18. Nxh6+ {[%clk 0:01:14]}  Kh7 {[%clk 0:01:54]} 19. Ng4 {[%clk 0:01:08]}  f5 {[%clk 0:01:50]} 20. Ne5 {[%clk 0:01:07]}  Bf6 {[%clk 0:01:48]} 21. f3 {[%clk 0:01:05]}  Bb7 {[%clk 0:01:43]} 22. Rxd8 {[%clk 0:01:04]}  Qxd8 {[%clk 0:01:43]} 23. Qc2 {[%clk 0:01:04]}  g6 {[%clk 0:01:34]} 24. Rd1 {[%clk 0:01:03]}  Qc7 {[%clk 0:01:31]} 25. Rd7+ {[%clk 0:01:02]} 1-0


[Site "https://www.chess.com"]